fUSD/lending_fUSD_20260419
["ID","MTS","AMOUNT","RATE_DAILY","PERIOD"]
[420827027,1776598242025,-500.0,0.00011999,4]
[420827028,1776598242035,-500.0,0.00011999,5]
[420827029,1776598242044,-500.0,0.00011999,6]
[420827030,1776598242053,-500.0,0.00011999,7]
[420827031,1776598242062,-166.78000001,0.00011999,8]
[420827032,1776598242072,-493.28235992,0.00011999,2]
[420827033,1776598242087,-500.0,0.00011999,2]
[420827034,1776598242096,-500.0,0.00011999,2]
[420827035,1776598242106,-500.0,0.00011999,2]
[420827036,1776598242115,-500.0,0.00011999,2]
[420827037,1776598242124,-500.0,0.00011999,2]
[420827038,1776598242133,-500.0,0.00011999,2]
[420827039,1776598242143,-500.0,0.00011999,2]
[420827040,1776598242153,-500.0,0.00011999,2]
[420827041,1776598242163,-500.0,0.00011999,2]
[420827042,1776598242172,-500.0,0.00011999,2]
[420827043,1776598242181,-500.0,0.00011999,2]
[420827044,1776598242191,-500.0,0.00011999,2]
[420827045,1776598242200,-500.0,0.00011999,2]
[420827046,1776598242209,-500.0,0.00011999,2]
[420827047,1776598242219,-453.76022923,0.00011999,2]
[420827048,1776598242228,-500.0,0.00011999,2]
[420827049,1776598242237,-500.0,0.00011999,2]
[420827051,1776598242246,-500.0,0.00011999,2]
[420827052,1776598242255,-301.20298237,0.00011999,2]
[420827054,1776598242264,-500.0,0.00011999,2]
[420827056,1776598242274,-500.0,0.00011999,2]
[420827058,1776598242283,-500.0,0.00011999,2]
[420827059,1776598242292,-500.0,0.00011999,2]
[420827060,1776598242302,-499.99999999,0.00011999,2]
[420827061,1776598242311,-500.0,0.00011999,2]
[420827064,1776598242319,-163.84971161,0.00011999,2]
[420827065,1776598242329,-343.0,0.00012,5]
[420827066,1776598242338,-285.0,0.00012,5]
[420827067,1776598242347,-63316.75126723,0.00012,2]
[420827072,1776598243021,-966.65907065,0.00012,2]
[420827124,1776598245507,-416.0,0.00010939,2]
[420827126,1776598245517,-501.25872568,0.000119,2]
[420827128,1776598245526,-1875.21177432,0.00012,2]
[420827130,1776598245538,-382.81464,0.00012,2]
[420827131,1776598245619,-299.11968399,0.00012,2]
[420827132,1776598246057,-3746.03658828,0.00012,2]
[420827138,1776598375342,50000.0,0.00032877,120]
[420827139,1776598399356,250.0,0.00032877,120]
[420827140,1776598412828,252.67,0.0003269,120]
[420827141,1776598476106,-171.67995488,0.00010373,2]
[420827142,1776598476134,-204.0,0.00010373,2]
[420827143,1776598491122,-1954.031,0.00010473,2]
[420827144,1776598506146,260.0,9.863e-05,2]
[420827145,1776598517245,200.0,0.00032877,120]
[420827146,1776598552692,160.6,0.000328,120]
[420827147,1776598616958,250.0,0.00032877,120]
[420827148,1776598619240,152.0,7.17e-05,2]
[420827149,1776598624639,-152.0,8.17e-05,2]
[420827150,1776598632469,250.0,0.00032877,120]
[420827151,1776598641123,-159.10668464,9.17e-05,2]
[420827152,1776598643629,9568.7,0.00032877,120]
[420827153,1776598668437,250.0,0.00032877,120]
[420827154,1776598689096,250.0,0.00032877,120]
[420827155,1776598702602,250.0,0.00032877,120]
[420827156,1776598725431,250.0,0.00032877,120]
[420827157,1776598823585,250.0,0.00032877,120]
[420827158,1776598825712,-1779.91,0.00010836,2]
[420827159,1776598831198,250.0,0.00032877,120]
[420827160,1776598859559,250.0,0.00032877,120]
[420827161,1776598873509,165.42,0.00030411,120]
[420827162,1776598920630,250.0,0.00032877,120]
[420827163,1776598972879,1726.29,0.00032876,120]
[420827164,1776598999699,500.0,0.00025852,120]
[420827165,1776599000117,500.0,0.00027007,120]
[420827166,1776599000527,500.0,0.00028161,120]
[420827167,1776599000937,500.0,0.00029316,120]
[420827168,1776599001356,500.0,0.00030471,120]
[420827169,1776599001800,500.0,0.00031625,120]
[420827170,1776599004867,500.0,0.0003278,120]
[420827171,1776599083732,250.0,0.00032877,120]
[420827172,1776599092454,250.0,0.00032877,120]
[420827173,1776599106276,250.0,0.00032877,120]
[420827174,1776599120615,305495.82,0.00032,120]
[420827178,1776599192838,250.0,0.00032877,120]
[420827179,1776599203197,250.0,0.00032877,120]
[420827180,1776599221378,250.0,0.00032877,120]
[420827181,1776599238995,-260.0,9.863e-05,2]
[420827182,1776599239023,-200.0,0.0001,2]
[420827183,1776599239053,-1684.20463973,0.0001025,2]
[420827184,1776599239082,-2191.84556026,0.0001035,2]
[420827185,1776599239163,-915.90960002,0.0001035,2]
[420827186,1776599239238,-412.0,0.0001035,2]
[420827187,1776599239269,-3903.40325377,0.0001045,2]
[420827188,1776599239320,-1369.20349246,0.0001055,2]
[420827189,1776599242144,-2706.90992279,0.0001055,2]
[420827190,1776599242173,-2281.01,0.00010613,2]
[420827191,1776599242228,-24.17015442,0.0001065,2]
[420827192,1776599247551,-4262.88119294,0.0001065,2]
[420827193,1776599258671,174.0,0.00032877,120]
[420827194,1776599325893,260.0,9.863e-05,2]
[420827195,1776599343150,150.0,0.0001518,30]
[420827196,1776599343207,150.0,0.00016106,30]
[420827197,1776599412745,150.0,0.00015145,30]
[420827198,1776599413084,150.0,0.0001607,30]
[420827200,1776599431750,-150.0,0.000108,2]
[420827201,1776599431759,-118.0,0.000108,2]
[420827202,1776599431960,-32.0,0.000108,2]
[420827203,1776599431970,-150.0,0.000108,2]
[420827204,1776599431979,-150.0,0.000108,2]
[420827205,1776599431988,-150.0,0.000108,2]
[420827206,1776599431998,-52.06656813,0.00010849,2]
[420827207,1776599432016,-197.93343187,0.00010849,2]
[420827209,1776599432025,-68.4467169,0.00010973,2]
[420827230,1776599437869,-231.5532831,0.00010973,2]
[420827231,1776599437879,-1200.0,0.00010973,2]
[420827232,1776599437888,-188.4467169,0.00010974,2]
[420827233,1776599438091,-1977.15710544,0.00010974,2]
[420827244,1776599441249,-334.39617766,0.00010974,2]
[420827245,1776599441259,-632.28767567,0.00010974,2]
[420827246,1776599441271,-1867.71232433,0.00010974,2]
[420827247,1776599441280,-2500.0,0.00010974,2]
[420827248,1776599441289,-2285.3271124,0.00010974,2]
[420827249,1776599441305,-214.6728876,0.00010974,2]
[420827250,1776599441314,-195.0,0.00010974,2]
[420827251,1776599441323,-195.0,0.00010974,2]
[420827252,1776599441333,-195.0,0.00010974,2]
[420827253,1776599441342,-195.0,0.00010974,2]
[420827254,1776599441352,-600.0,0.00010974,2]
[420827255,1776599441361,-600.0,0.00010974,2]
[420827256,1776599441371,-600.0,0.00010974,2]
[420827257,1776599441380,-600.0,0.00010974,2]
[420827258,1776599441389,-150.0,0.0001104,2]
[420827259,1776599441400,-300.0,0.00011099,2]
[420827260,1776599441409,-434.21,0.000111,2]
[420827261,1776599441419,-178.44,0.000111,2]
[420827262,1776599441428,-150.0,0.0001128,2]
[420827263,1776599441437,-1000.0,0.00011356,2]
[420827264,1776599441447,-238.01618357,0.00011356,2]
[420827265,1776599441456,-1500.0,0.00011382,2]
[420827266,1776599441465,-201.72494327,0.000114,2]
[420827267,1776599441475,-315.48090111,0.000114,2]
[420827268,1776599441484,-302.39605835,0.000114,2]
[420827269,1776599441493,-284.28843561,0.000114,2]
[420827270,1776599441503,-25299.1871,0.00011404,2]
[420827271,1776599441512,-150.0,0.0001142,2]
[420827272,1776599441521,-5959.16139856,0.00011494,2]
[420827273,1776599441530,-150.0,0.00011503,2]
[420827274,1776599441540,-12251.34386091,0.00011504,2]
[420827275,1776599441549,-7485.26715944,0.00011504,2]
[420827276,1776599441559,-24523.62611346,0.00011504,2]
[420827277,1776599441573,-1167.1,0.00011507,2]
[420827278,1776599441583,-202.88753594,0.00011512,2]
[420827279,1776599441592,-150.0,0.0001152,2]
[420827280,1776599441602,-1983.725,0.00011539,2]
[420827281,1776599441612,-164.576,0.00011539,2]
[420827282,1776599441621,-155.0,0.00011539,2]
[420827283,1776599441631,-464.69479812,0.00011539,2]
[420827284,1776599441640,-500.0,0.00011539,2]
[420827285,1776599441650,-203.58971129,0.00011539,2]
[420827286,1776599441660,-500.0,0.00011539,2]
[420827287,1776599441670,-500.0,0.00011539,2]
[420827288,1776599441679,-603.1712581,0.00011539,2]
[420827289,1776599441689,-500.0,0.00011539,2]
[420827290,1776599441699,-500.0,0.00011539,2]
[420827291,1776599441710,-500.0,0.00011539,2]
[420827292,1776599441720,-500.0,0.00011539,2]
[420827293,1776599441731,-500.0,0.00011539,2]
[420827294,1776599441740,-500.0,0.00011539,2]
[420827295,1776599441751,-500.0,0.00011539,2]
[420827296,1776599441760,-534.48602637,0.00011539,2]
[420827297,1776599441770,-500.0,0.00011539,2]
[420827298,1776599441781,-175.28635869,0.00011539,2]
[420827299,1776599441791,-500.0,0.00011539,2]
[420827300,1776599441803,-500.0,0.00011539,2]
[420827301,1776599441813,-500.0,0.00011539,2]
[420827302,1776599441823,-181.76305584,0.00011539,2]
[420827303,1776599441833,-500.0,0.00011539,2]
[420827304,1776599441842,-417.36727758,0.00011539,2]
[420827305,1776599441855,-500.0,0.00011539,2]
[420827306,1776599441865,-500.0,0.00011539,2]
[420827307,1776599441874,-500.0,0.00011539,2]
[420827308,1776599441883,-500.0,0.00011539,2]
[420827309,1776599441893,-500.0,0.00011539,2]
[420827310,1776599441902,-500.0,0.00011539,2]
[420827311,1776599441912,-500.0,0.00011539,2]
[420827312,1776599441922,-500.0,0.00011539,2]
[420827313,1776599441931,-500.0,0.00011539,2]
[420827314,1776599441940,-500.0,0.00011539,2]
[420827315,1776599441950,-500.0,0.00011539,2]
[420827316,1776599441964,-500.0,0.00011539,2]
[420827317,1776599441975,-500.0,0.00011539,2]
[420827318,1776599441986,-500.0,0.00011539,2]
[420827319,1776599441996,-500.0,0.00011539,2]
[420827320,1776599442007,-500.0,0.00011539,2]
[420827321,1776599442017,-500.0,0.00011539,2]
[420827322,1776599442027,-500.0,0.00011539,2]
[420827323,1776599442037,-500.0,0.00011539,2]
[420827324,1776599442047,-500.0,0.00011539,2]
[420827325,1776599442057,-516882.0706,0.0001154,2]
[420827326,1776599442067,-3240.0,0.00011604,2]
[420827327,1776599442077,-498.66535657,0.0001165,2]
[420827328,1776599442123,-11666.94287405,0.0001165,2]
[420827329,1776599442134,-150.0,0.0001176,2]
[420827330,1776599442144,-450.97944,0.0001188,2]
[420827331,1776599442154,-450.97943,0.0001188,2]
[420827332,1776599442164,-600.0,0.0001188,2]
[420827333,1776599442174,-2500.0,0.0001188,2]
[420827334,1776599442184,-195.0,0.0001188,2]
[420827335,1776599442193,-450.97944,0.0001189,2]
[420827336,1776599442203,-4152.75924221,0.00011899,2]
[420827337,1776599442212,-1000.0,0.000119,2]
[420827338,1776599442223,-1295.0887,0.000119,2]
[420827339,1776599442232,-5000.0,0.000119,2]
[420827340,1776599442242,-221.94479976,0.000119,2]
[420827341,1776599442252,-1052.5639916,0.000119,2]
[420827342,1776599442262,-334.17248378,0.000119,2]
[420827343,1776599442272,-200.0,0.00011904,2]
[420827344,1776599442281,-450.97944,0.0001191,2]
[420827345,1776599442291,-178.12008967,0.0001199,2]
[420827346,1776599442301,-18535.7576496,0.00011994,2]
[420827347,1776599442312,-151.0,0.00011994,2]
[420827348,1776599442321,-151.0,0.00011994,2]
[420827349,1776599442331,-151.0,0.00011994,2]
[420827350,1776599442341,-151.0,0.00011999,2]
[420827351,1776599442355,-151.0,0.00011999,2]
[420827352,1776599442366,-500.0,0.00011999,2]
[420827353,1776599442376,-500.0,0.00011999,2]
[420827354,1776599442386,-500.0,0.00011999,2]
[420827355,1776599442396,-500.0,0.00011999,2]
[420827356,1776599442406,-500.0,0.00011999,2]
[420827357,1776599442416,-500.0,0.00011999,2]
[420827358,1776599442426,-500.0,0.00011999,2]
[420827359,1776599442437,-500.0,0.00011999,2]
[420827360,1776599442447,-500.0,0.00011999,2]
[420827361,1776599442457,-500.0,0.00011999,2]
[420827362,1776599442467,-500.0,0.00011999,2]
[420827363,1776599442477,-500.0,0.00011999,2]
[420827365,1776599442487,-500.0,0.00011999,2]
[420827367,1776599442496,-500.0,0.00011999,2]
[420827368,1776599442507,-500.0,0.00011999,2]
[420827369,1776599442517,-500.0,0.00011999,2]
[420827370,1776599442527,-500.0,0.00011999,2]
[420827371,1776599442536,-500.0,0.00011999,2]
[420827372,1776599442546,-500.0,0.00011999,2]
[420827373,1776599442556,-500.0,0.00011999,2]
[420827374,1776599442567,-500.0,0.00011999,2]
[420827375,1776599442576,-500.0,0.00011999,2]
[420827376,1776599442586,-500.0,0.00011999,2]
[420827377,1776599442596,-500.0,0.00011999,2]
[420827378,1776599442606,-500.0,0.00011999,2]
[420827379,1776599442616,-500.0,0.00011999,2]
[420827380,1776599442625,-500.0,0.00011999,2]
[420827381,1776599442635,-500.0,0.00011999,2]
[420827382,1776599442645,-568.38098922,0.00011999,2]
[420827383,1776599442655,-500.0,0.00011999,2]
[420827384,1776599442664,-500.0,0.00011999,2]
[420827385,1776599442674,-500.0,0.00011999,2]
[420827386,1776599442683,-500.0,0.00011999,2]
[420827387,1776599442693,-500.0,0.00011999,2]
[420827388,1776599442703,-500.0,0.00011999,2]
[420827389,1776599442712,-500.0,0.00011999,2]
[420827390,1776599442721,-550.0,0.00011999,2]
[420827391,1776599442731,-500.0,0.00011999,2]
[420827392,1776599442741,-500.0,0.00011999,2]
[420827393,1776599442754,-500.0,0.00011999,2]
[420827394,1776599442764,-500.0,0.00011999,2]
[420827395,1776599442774,-500.0,0.00011999,2]
[420827396,1776599442784,-500.0,0.00011999,2]
[420827397,1776599442793,-500.0,0.00011999,2]
[420827398,1776599442804,-500.0,0.00011999,2]
[420827399,1776599442814,-500.0,0.00011999,2]
[420827400,1776599442825,-500.0,0.00011999,2]
[420827401,1776599442834,-500.0,0.00011999,2]
[420827402,1776599442844,-500.0,0.00011999,2]
[420827403,1776599442855,-500.0,0.00011999,2]
[420827404,1776599442864,-500.0,0.00011999,2]
[420827405,1776599442875,-500.0,0.00011999,2]
[420827406,1776599442885,-500.0,0.00011999,2]
[420827407,1776599442895,-500.0,0.00011999,2]
[420827408,1776599442905,-500.0,0.00011999,2]
[420827409,1776599442915,-500.0,0.00011999,2]
[420827410,1776599442924,-500.0,0.00011999,2]
[420827411,1776599442935,-500.0,0.00011999,2]
[420827412,1776599442946,-500.0,0.00011999,2]
[420827413,1776599442956,-500.0,0.00011999,2]
[420827414,1776599442966,-500.0,0.00011999,2]
[420827415,1776599442979,-219.0,0.00012,5]
[420827416,1776599442989,-99.47641598,0.00012,5]
[420827417,1776599443003,-53.52358402,0.00012,5]
[420827418,1776599443015,-36048.33004994,0.00012,2]
[420827419,1776599443027,-1425.82817633,0.00012,2]
[420827420,1776599445934,-994.30618172,0.00011082,2]
[420827424,1776599446372,-1478.69381828,0.00011082,2]
[420827425,1776599446382,-543.9176589,0.00012,2]
[420827428,1776599446485,-541.39864331,0.00012,2]
[420827431,1776599446757,-1579.0,0.00012,2]
[420827432,1776599446768,-810.70186814,0.00012,2]
[420827441,1776599492135,150.0,0.00013072,30]
[420827442,1776599492503,150.0,0.0001387,30]
[420827443,1776599492837,150.0,0.00014668,30]
[420827444,1776599493172,150.0,0.00015466,30]
[420827445,1776599493539,150.0,0.00016263,30]
[420827446,1776599562421,150.0,0.00013074,30]
[420827447,1776599583069,260.0,9.863e-05,2]
[420827448,1776599595313,941.95,0.00032603,120]
[420827449,1776599595447,372.0,0.00032876,120]
[420827450,1776599596005,655.0,0.00032876,120]
[420827451,1776599597622,941.95,0.00032603,120]
[420827452,1776599599926,264.787356,0.00032603,120]
[420827453,1776599617054,160.0,0.00032876,120]
[420827454,1776599617884,302.0,0.0003287,120]
[420827455,1776599619945,232.0,0.0003287,120]
[420827456,1776599626987,346.0,0.00010538,2]
[420827457,1776599648220,1441.2,0.00026027,120]
[420827458,1776599648660,1441.2,0.00026274,120]
[420827459,1776599649052,1441.22,0.00026521,120]
[420827460,1776599649116,364.496446,0.00032603,120]
[420827461,1776599649170,450.725068,0.00032603,120]
[420827462,1776599650624,3827.34727602,0.00032876,120]
[420827463,1776599654773,2835.83186339,0.0003287,120]
[420827464,1776599660117,1644.47919034,0.00032876,120]
[420827465,1776599660189,1669.52860755,0.00032876,120]
[420827466,1776599664781,1000.0,0.00032877,120]
[420827467,1776599669342,1555.0,0.00032877,120]
[420827468,1776599679000,320.0,0.00032876,120]
[420827469,1776599692447,337.0,0.0003287,120]
[420827470,1776599692808,1041.63289667,0.00027397,120]
[420827471,1776599693244,506.0,0.0003287,120]
[420827472,1776599695882,761.0,0.0003287,120]
[420827473,1776599695953,1312.0,0.0003287,120]
[420827474,1776599696013,842.0,0.0003287,120]
[420827475,1776599696341,1312.0,0.0003287,120]
[420827476,1776599697115,1437.0,0.0003287,120]
[420827477,1776599697885,175.0,0.0003287,120]
[420827478,1776599700157,320.0,0.0003287,120]
[420827479,1776599700934,425.0,0.0003287,120]
[420827480,1776599701708,334.0,0.0003287,120]
[420827481,1776599724959,1000.0,0.00032877,120]
[420827482,1776599726713,331.42,0.00032,120]
[420827483,1776599727985,1571.69,0.00032603,120]
[420827484,1776599728039,1066.19,0.00032603,120]
[420827485,1776599732279,1571.69,0.00032603,120]
[420827486,1776599732333,1066.19,0.00032603,120]
[420827487,1776599732946,844.6020514,0.00032603,120]
[420827488,1776599733063,1571.69,0.00032603,120]
[420827489,1776599734272,640.0,0.00032876,120]
[420827490,1776599734949,1571.69,0.00032603,120]
[420827491,1776599736215,258.26,0.00032,120]
[420827492,1776599737259,1228.13857824,0.00032603,120]
[420827493,1776599766914,1000.0,0.00032876,120]
[420827494,1776599775200,1000.0,0.00032877,120]
[420827495,1776599778286,1000.0,0.00032877,120]
[420827496,1776599783428,1000.0,0.00032877,120]
[420827497,1776599793213,1000.0,0.00032877,120]
[420827498,1776599798168,596.0,0.0003287,120]
[420827499,1776599798314,1000.0,0.00032877,120]
[420827500,1776599799299,1157.0,0.0003287,120]
[420827501,1776599799749,494.0,0.0003287,120]
[420827502,1776599800688,977.0,0.0003287,120]
[420827503,1776599801464,1786.0,0.0003287,120]
[420827506,1776599805497,346.74472953,0.0003287,120]
[420827507,1776599814695,500.0,0.00032876,120]
[420827508,1776599814915,500.0,0.00032876,120]
[420827509,1776599815133,500.0,0.00032876,120]
[420827510,1776599815386,500.0,0.00032876,120]
[420827511,1776599817759,500.0,0.00032876,120]
[420827512,1776599817811,500.0,0.00032876,120]
[420827513,1776599817872,500.0,0.00032876,120]
[420827514,1776599817927,500.0,0.00032876,120]
[420827515,1776599817983,500.0,0.00032876,120]
[420827516,1776599818034,500.0,0.00032876,120]
[420827517,1776599818086,500.0,0.00032876,120]
[420827518,1776599818171,500.0,0.00032876,120]
[420827519,1776599818235,500.0,0.00032876,120]
[420827520,1776599818295,500.0,0.00032876,120]
[420827521,1776599818356,500.0,0.00032876,120]
[420827522,1776599818427,500.0,0.00032876,120]
[420827523,1776599818533,500.0,0.00032876,120]
[420827524,1776599818639,500.0,0.00032876,120]
[420827525,1776599818875,500.0,0.00032876,120]
[420827526,1776599819101,500.0,0.00032876,120]
[420827527,1776599819325,500.0,0.00032876,120]
[420827528,1776599819546,500.0,0.00032876,120]
[420827529,1776599819766,500.0,0.00032876,120]
[420827530,1776599819997,500.0,0.00032876,120]
[420827531,1776599820217,500.0,0.00032876,120]
[420827532,1776599820445,500.0,0.00032876,120]
[420827533,1776599820663,500.0,0.00032876,120]
[420827534,1776599820883,500.0,0.00032876,120]
[420827535,1776599821115,500.0,0.00032876,120]
[420827536,1776599821337,500.0,0.00032876,120]
[420827537,1776599821584,500.0,0.00032876,120]
[420827538,1776599821808,500.0,0.00032876,120]
[420827539,1776599822035,500.0,0.00032876,120]
[420827540,1776599822260,500.0,0.00032876,120]
[420827541,1776599822483,500.0,0.00032876,120]
[420827542,1776599822705,500.0,0.00032876,120]
[420827543,1776599823038,500.0,0.00032876,120]
[420827544,1776599823290,500.0,0.00032876,120]
[420827545,1776599823513,500.0,0.00032876,120]
[420827546,1776599823734,500.0,0.00032876,120]
[420827547,1776599823994,500.0,0.00032876,120]
[420827548,1776599824185,500.0,0.00032876,120]
[420827549,1776599824429,500.0,0.00032876,120]
[420827550,1776599824699,500.0,0.00032876,120]
[420827551,1776599824890,500.0,0.00032876,120]
[420827552,1776599825116,500.0,0.00032876,120]
[420827553,1776599825346,500.0,0.00032876,120]
[420827554,1776599825593,500.0,0.00032876,120]
[420827555,1776599826288,500.0,0.00032876,120]
[420827556,1776599826401,500.0,0.00032876,120]
[420827557,1776599826561,500.0,0.00032876,120]
[420827558,1776599826753,1000.0,0.00032877,120]
[420827559,1776599826810,500.0,0.00032876,120]
[420827560,1776599827022,500.0,0.00032876,120]
[420827561,1776599827264,500.0,0.00032876,120]
[420827562,1776599827485,500.0,0.00032876,120]
[420827563,1776599829615,500.0,0.00032876,120]
[420827564,1776599829701,500.0,0.00032876,120]
[420827565,1776599829762,500.0,0.00032876,120]
[420827566,1776599829834,500.0,0.00032876,120]
[420827567,1776599829908,500.0,0.00032876,120]
[420827568,1776599829973,500.0,0.00032876,120]
[420827569,1776599830104,500.0,0.00032876,120]
[420827570,1776599830156,500.0,0.00032876,120]
[420827571,1776599830221,500.0,0.00032876,120]
[420827572,1776599830276,500.0,0.00032876,120]
[420827573,1776599830412,500.0,0.00032876,120]
[420827574,1776599830637,389.15634944,0.00032876,120]
[420827575,1776599854542,320.0,0.00032876,120]
[420827576,1776599861195,1000.0,0.00032877,120]
[420827577,1776599862844,350.00000097,0.00027397,120]
[420827578,1776599869442,355.77222122,0.0003287,120]
[420827579,1776599870073,780.0,0.0003287,120]
[420827580,1776599870870,229.0,0.0003287,120]
[420827581,1776599885684,1000.0,0.00032877,120]
[420827582,1776599887315,300.0,0.000327,120]
[420827583,1776599903601,50000.0,0.00032877,120]
[420827584,1776599916150,160.0,0.00032876,120]
[420827585,1776599928680,618.93192956,0.00032877,120]
[420827586,1776599939474,606.15135526,0.0003,120]
[420827587,1776599945252,1013.84275875,0.00032877,120]
[420827588,1776599959445,260.0,9.863e-05,2]
[420827589,1776599972163,2792.73533853,0.0001,2]
[420827590,1776599988110,400.0,0.0003,120]
[420827591,1776599995178,168.81476278,0.0003,120]
[420827592,1776600000763,150.0,0.00017795,120]
[420827593,1776600001498,250.59953419,0.00017795,120]
[420827594,1776600002671,305.49758992,0.00032876,120]
[420827596,1776600028998,2800.81879199,0.00032877,120]
[420827597,1776600037865,566.40494687,0.00029999,120]
[420827598,1776600038356,957.0,0.0003287,120]
[420827599,1776600039155,1666.64915367,0.0003287,120]
[420827600,1776600039527,610.33462507,0.00032849,120]
[420827602,1776600048044,1005.22310676,0.00032876,120]
[420827615,1776600110447,178.3,0.00032876,120]
[420827617,1776600126090,181.0,0.00032876,120]
[420827618,1776600199228,-2000.0,0.00010917,2]
[420827619,1776600215839,600.0,0.00032,120]
[420827620,1776600219220,1000.0,0.00032876,120]
[420827621,1776600224531,1000.0,0.00032876,120]
[420827623,1776600232936,2005.14,0.00032876,120]
[420827624,1776600234497,500.0,0.00032192,120]
[420827625,1776600236044,260.0,9.863e-05,2]
[420827626,1776600248042,1000.0,0.00032876,120]
[420827627,1776600248683,821.858595,0.00032876,120]
[420827628,1776600255222,400.0,0.00032,120]
[420827629,1776600261434,1000.0,0.00032876,120]
[420827630,1776600264384,161.0,0.00032876,120]
[420827631,1776600279748,1000.0,0.00032876,120]
[420827632,1776600281569,700.0,0.00032,120]
[420827635,1776600303711,1000.0,0.00032876,120]
[420827636,1776600325318,1000.0,0.00032876,120]
[420827637,1776600332011,150.0,0.000108,2]
[420827638,1776600357584,-156.3457197,0.00010917,2]
[420827639,1776600367497,260.0,9.863e-05,2]
[420827640,1776600381071,506.0,0.00032,120]
[420827641,1776600426314,800.0,0.00032,120]
[420827643,1776600448488,1000.0,0.00032,120]
[420827644,1776600510567,1000.0,0.00032877,120]
[420827645,1776600559634,-208.85,0.00010983,2]
[420827646,1776600559656,-195.0,0.00010984,2]
[420827647,1776600559680,-120.62361737,0.00010985,2]
[420827648,1776600564771,9427.3185606,0.0001087,2]
[420827649,1776600564794,9906.3014394,0.0001087,2]
[420827650,1776600565878,-207.14856194,0.00010985,2]
[420827651,1776600596935,2926.0,0.00032877,120]
[420827652,1776600600913,240.35972052,0.00017795,120]
[420827653,1776600619397,1000.0,0.00032876,120]
[420827654,1776600623737,1000.0,0.00032877,120]
[420827655,1776600631569,1000.0,0.00032877,120]
[420827663,1776600632106,-2172.22782069,0.00010985,2]
[420827664,1776600632116,-600.0,0.00010987,2]
[420827665,1776600632126,-195.0,0.00010989,2]
[420827666,1776600632135,-195.0,0.00010989,2]
[420827667,1776600632144,-257.82240219,0.00010989,2]
[420827668,1776600632154,-300.0,0.00010991,2]
[420827669,1776600632163,-1200.0,0.00010995,2]
[420827670,1776600632172,-300.0,0.00010995,2]
[420827671,1776600632181,-2500.0,0.00010996,2]
[420827672,1776600632190,-2500.0,0.00010996,2]
[420827673,1776600632199,-2500.0,0.00010996,2]
[420827674,1776600632208,-1600.0,0.00010999,2]
[420827675,1776600632218,-600.0,0.0001102,2]